Cogmind - Beta 17 @@@ ROGUE MODE // 2026.08.04 @ 16:25:40 Player: Suffixing Result: Destroyed by Y-54 Guardian with Flak Gun Performance ------------- Evolutions (0) 0 Regions Visited (3) 600 Robots Destroyed (19) 95 Value Destroyed (367) 367 Prototype IDs (2) 40 Alien Tech Used (0) 0 Bonus (0) 0 TOTAL SCORE: 1102 Bonus ------- None Cogmind --------- Core Integrity 0/250 Matter 254/300 Energy 125/125 System Corruption 0% Temperature Cool (26) Movement Treading (250) Ox1 Location -7/Recycling Parts ------- > --- POWER (1) -------- Light Ion Engine > --- PROPULSION (2) --- Light Treads Spiked Treads > --- UTILITY (2) ------ High-capacity Storage Unit > --- WEAPON (2) ------- Light Assault Rifle Barrage Gun > --- INVENTORY (20) --- Subdweller Power Source Subdweller Power Source Light Treads Light Treads Spiked Treads Compact Wheel Subdweller Monowheel Subdweller Monowheel Subdweller Monowheel Subdweller Monowheel Subdweller Monowheel Large Storage Unit Scrap Shield Light Assault Rifle Light Assault Rifle Light Assault Rifle Grenade Launcher Subdweller Shrapnel Launcher Peak State ------------ > --- POWER ------------ Light Ion Engine > --- PROPULSION ------- Light Treads Spiked Treads > --- UTILITY ---------- High-capacity Storage Unit > --- WEAPON ----------- Light Assault Rifle Barrage Gun > --- INVENTORY -------- Subdweller Power Source Subdweller Power Source Light Treads Light Treads Spiked Treads Compact Wheel Subdweller Monowheel Subdweller Monowheel Subdweller Monowheel Subdweller Monowheel Subdweller Monowheel Large Storage Unit Scrap Shield Light Assault Rifle Light Assault Rifle Light Assault Rifle Light Assault Rifle Grenade Launcher Subdweller Shrapnel Launcher [Rating: 12] Favorites ----------- Power Light Ion Engine Engine Light Ion Engine Power Core Light Nuclear Core Propulsion Light Treads Treads Light Treads Leg Aluminum Leg Utility High-capacity Storage Unit Storage High-capacity Storage Unit Protection Backup Plating I Weapon Light Assault Rifle Ballistic Gun Light Assault Rifle Launcher Grenade Launcher Build | -11 -10 -10 -7 ------- Run | Yrd Mat Sub Rec Slots Evolved . | . . . . Power . | . . . . Propulsion . | . . . . Utility . | . . . . Weapon . | . . . . Parts Attached 15 | 3 2 10 . Power 3 | . . 3 . Engine 2 | . . 2 . Core 1 | . . 1 . Reactor . | . . . . Propulsion 5 | 2 1 2 . Treads 5 | 2 1 2 . Leg . | . . . . Wheel . | . . . . Hover . | . . . . Flight . | . . . . Utility 1 | . 1 . . Device . | . . . . Storage 1 | . 1 . . Processor . | . . . . Hackware . | . . . . Protection . | . . . . Artifact . | . . . . Weapon 6 | 1 . 5 . Energy Gun . | . . . . Energy Cannon . | . . . . Ballistic Gun 5 | 1 . 4 . Ballistic Cannon . | . . . . Launcher 1 | . . 1 . Special Weapon . | . . . . Impact Weapon . | . . . . Slashing Weapon . | . . . . Piercing Weapon . | . . . . Special Melee Weapon . | . . . . Unidentified Prototypes . | . . . . Parts Lost 9 | . 1 7 1 Power 3 | . . 3 . Propulsion 3 | . 1 2 . Utility 1 | . . 1 . Weapon 2 | . . 1 1 Highest Loss Streak 2 | . 1 2 1 To Critical Strikes . | . . . . Average Backups 11 | 4 7 16 18 Power 1 | 1 1 1 2 Propulsion 5 | 2 2 8 9 Utility 1 | . . 1 2 Weapon 3 | . 2 4 5 Tool/Special . | . . . . Unused Backups 18 | . 1 2 15 Power 2 | . . . 2 Propulsion 9 | . . 1 8 Utility 4 | . 1 1 2 Weapon 3 | . . . 3 Tool/Special . | . . . . Average Slot Usage (%) 90 | . 89 91 85 Engine 13 | . 14 12 14 Treads 27 | . 27 27 28 Storage 14 | . 14 14 14 Protection 5 | . 4 7 . Ballistic Gun 27 | . 28 27 28 Peak Build Rating 12 | 6 8 12 12 Average Rating 8 | 6 6 9 12 On Entrance 8 | 6 6 8 12 Avg Prop Armor Cover (%) . | . . . . Naked Turns . | . . . . Heaviest Build 50 | 10 46 50 47 Greatest Support 40 | 40 40 40 40 Greatest Overweight (x) 1 | . 1 1 1 Average Overweight (x) . | . . 1 1 Largest Inventory Capacity 20 | 8 20 20 20 Average Capacity 19 | 8 19 20 20 Most Carried 20 | 6 13 20 20 Average Carried 12 | 3 7 17 19 Final Capacity 20 | 8 20 20 20 Final Carried 20 | 2 13 20 19 Class Distribution -------------------- 94% | Mutant 5% | Scavenger-Mutant Dominant Class ---------------- Mutant | -10/Materials Mutant | -10/Subcaves Mutant | -7/Recycling Resources | -11 -10 -10 -7 ----------- Run | Yrd Mat Sub Rec Matter Collected 686 | 230 79 377 . Remotely . | . . . . Salvage Created 525 | . 343 182 . Parts 34 | . 22 12 . Haulers Intercepted 2 | . 2 . . Recyclers Shooed . | . . . . Parts Field Recycled . | . . . . Retrieved Matter . | . . . . Parts Self-Destructed 9 | . . 9 . Prevented . | . . . . Parts Restored . | . . . . Kills | -11 -10 -10 -7 ------- Run | Yrd Mat Sub Rec Combat Hostiles Destroyed 13 | . 7 6 . Guns 13 | . 7 6 . Classes Destroyed 7 | . 5 2 . Hauler 2 | . 2 . . Recycler 1 | . 1 . . Turret 2 | . . 2 . Watcher 1 | . 1 . . Swarmer 8 | . 5 3 . Grunt 2 | . 2 . . Subdweller 3 | . . 3 . Best Kill Streak 4 | . 4 3 . Combat Bots Only 4 | . 4 3 . Max Kills in Single Turn 2 | . 1 2 . Gunslinging 1 | . . 1 . Exploded . | . . . . Melee . | . . . . Uniques/NPCs Destroyed . | . . . . Combat | -11 -10 -10 -7 -------- Run | Yrd Mat Sub Rec Hostile Shots Fired 219 | . 60 141 18 Missed 75 | . 21 50 4 Hits 144 | . 39 91 14 Projectile 144 | . 39 91 14 Damage Taken 1400 | . 386 933 81 Core 251 | . 60 160 31 Absorbed by Shields . | . . . . Core Remaining (%) 100 | 100 . . . Volleys Fired 108 | . 34 73 1 Largest 2 | . 2 2 2 Hottest 48 | . 40 48 48 Shots Fired 192 | . 68 122 2 Gun 183 | . 68 113 2 Cannon . | . . . . Launcher 9 | . . 9 . Special . | . . . . Kinetic 183 | . 68 113 2 Thermal . | . . . . Explosive 9 | . . 9 . Electromagnetic . | . . . . Robot Hit Streak 13 | . 10 13 4 Robot Miss Streak 4 | . 3 4 . Penetration Max . | . . . . Secondary Targets 4 | . 1 3 . Max Gunslinging Chain 1 | . 1 1 . Shots Hit Robots 119 | . 40 77 2 Core Hits 52 | . 25 27 . Critical Kills . | . . . . Critical Parts Destroyed . | . . . . Critical Strikes . | . . . . Melee Attacks . | . . . . Impact . | . . . . Slashing . | . . . . Piercing . | . . . . Sneak Attacks . | . . . . Combat Hostiles . | . . . . Follow-up Attacks . | . . . . Damage Inflicted 1279 | . 429 823 27 Guns 1203 | . 409 767 27 Cannons . | . . . . Explosions 56 | . . 56 . Melee . | . . . . Ramming 20 | . 20 . . Kinetic 1203 | . 409 767 27 Thermal . | . . . . Explosive 56 | . . 56 . Electromagnetic . | . . . . Impact . | . . . . Slashing . | . . . . Piercing . | . . . . Highest Corruption . | . . . . Average Corruption . | . . . . Corruption Purged . | . . . . Corruption Blocked . | . . . . Overload Shots . | . . . . Overflow Damage . | . . . . Projectiles . | . . . . Explosions . | . . . . Melee . | . . . . Knockbacks . | . . . . Impact . | . . . . Kinetic . | . . . . Secondary . | . . . . Self-Inflicted Damage . | . . . . Shots . | . . . . Rammed 3 | . 3 . . Targets Rammed 3 | . 3 . . Kicked . | . . . . Crushed . | . . . . Highest Temperature 42 | . 42 13 8 Average Temperature 10 | . 11 6 6 Received Heat Transfer 495 | . 123 342 30 Siege Activations . | . . . . Martial Activations . | . . . . Shielding Activations . | . . . . Robots Disrupted . | . . . . Combat Hostiles . | . . . . Robots Corrupted . | . . . . Combat Hostiles . | . . . . Parts Fried . | . . . . Impact Corruptions . | . . . . Robots Melted . | . . . . Combat Hostiles . | . . . . Parts Melted 1 | . . 1 . Heat Transferred . | . . . . Parts Sabotaged . | . . . . Parts Stolen . | . . . . Parts Stripped . | . . . . Power Chain Reactions . | . . . . Alert | -11 -10 -10 -7 ------- Run | Yrd Mat Sub Rec Maximum Alert Level . | . . . . Low Security (%) 100 | 100 100 . 100 Level 1 . | . . . . Level 2 . | . . . . Level 3 . | . . . . Level 4 . | . . . . Level 5 . | . . . . High Security . | . . . . Max Security . | . . . . Peak Influence 78 | . 78 . . Initial . | . . . . Average 15 | . 15 . . Influence Increases 616 | . 216 400 . Destroy 0b10 Robot/C 240 | . 140 100 . Destroy 0b10 Robot/NC 20 | . 20 . . Destroy Leader 36 | . 36 . . Successful Hack 5 | . 5 . . Lose Combat Pursuer 315 | . 15 300 . Influence Decreases 616 | . 167 449 . Entered New Map 25 | . . 25 . Time Decay 521 | . 157 364 . Lost Part 70 | . 10 60 . Squads Dispatched . | . . . . Investigation . | . . . . Extermination . | . . . . Reinforcement . | . . . . Assault . | . . . . Garrison . | . . . . Intercept . | . . . . Searches Triggered . | . . . . Construction Impeded . | . . . . Haulers Reinforced . | . . . . Active Scanning Responses . | . . . . Cargo Convoy Interrupts . | . . . . Stealth | -11 -10 -10 -7 --------- Run | Yrd Mat Sub Rec Distress Signals . | . . . . Communications Jammed . | . . . . Distress Signals . | . . . . Times Spotted 32 | . 19 12 1 Peak Tracking Total 4 | . 4 3 2 Tactical Retreats 5 | . 1 4 . Traps | -11 -10 -10 -7 ------- Run | Yrd Mat Sub Rec Traps Triggered . | . . . . Indirectly . | . . . . Trap Hack Attempts . | . . . . Triggered . | . . . . Disarmed . | . . . . Reprogrammed . | . . . . Reused . | . . . . Traps Extracted . | . . . . Installed . | . . . . Triggered . | . . . . Machines | -11 -10 -10 -7 ---------- Run | Yrd Mat Sub Rec Machines Disabled 2 | . . 2 . Max in Single Turn 1 | . . 1 . Machines Repaired . | . . . . Machines Dismantled . | . . . . Machines Sabotaged . | . . . . Overloaded Fab Kills . | . . . . Hacking | -11 -10 -10 -7 --------- Run | Yrd Mat Sub Rec Machines Accessed 8 | . 6 2 . Terminals 5 | . 5 . . Fabricators . | . . . . Repair Stations 1 | . 1 . . Recycling Units . | . . . . Scanalyzers . | . . . . Garrison Access . | . . . . Total Hacks 13 | . 11 2 . Successful 4 | . 2 2 . Failed 9 | . 9 . . Catastrophic 1 | . 1 . . Database Lockouts . | . . . . Manual 8 | . 8 . . Terminals 10 | . 10 . . Fabricators . | . . . . Repair Stations 1 | . 1 . . Recycling Units . | . . . . Scanalyzers . | . . . . Garrison Access . | . . . . Terminal Hacks 3 | . 1 2 . Prototype ID Bank 1 | . 1 . . Open Door 1 | . . 1 . Release Object 1 | . . 1 . Fabricator Hacks . | . . . . Repair Station Hacks 1 | . 1 . . Refit 1 | . 1 . . Recycling Unit Hacks . | . . . . Scanalyzer . | . . . . Garrison Access Hacks . | . . . . Unauthorized Hacks . | . . . . Terminals . | . . . . Fabricators . | . . . . Repair Stations . | . . . . Recycling Units . | . . . . Scanalyzers . | . . . . Garrison Access . | . . . . Data Cores Recovered . | . . . . Used . | . . . . Hacking Detections 4 | . 4 . . Full Trace Events . | . . . . Feedback Events . | . . . . Feedback Blocked . | . . . . Robot Schematics Acquired . | . . . . Robots Built . | . . . . Authchips . | . . . . Time . | . . . . Total Robot Build Rating . | . . . . Part Schematics Acquired . | . . . . Parts Built . | . . . . Authchips . | . . . . Time . | . . . . Total Part Build Rating . | . . . . Part Studies Acquired . | . . . . Parts Repaired . | . . . . Time . | . . . . Parts Recycled . | . . . . Recycled Matter . | . . . . Retrieved Matter . | . . . . Retrieved Components . | . . . . Parts Scanalyzed . | . . . . Part Schematics Acquired . | . . . . Parts Damaged . | . . . . Bothacking | -11 -10 -10 -7 ------------ Run | Yrd Mat Sub Rec Used RIF Installer . | . . . . Robots Hacked . | . . . . Non-combat . | . . . . Combat . | . . . . Robot Hacks Applied . | . . . . Relay Couplers Released . | . . . . Fabnet Peak Effective % . | . . . . Robots Rewired . | . . . . Allies Hacked . | . . . . Hacks Repelled . | . . . . Allies | -11 -10 -10 -7 -------- Run | Yrd Mat Sub Rec Total Allies . | . . . . Largest Group . | . . . . Highest-Rated Group . | . . . . Highest-Rated Ally . | . . . . Total Orders . | . . . . Ally Attacks . | . . . . Total Damage . | . . . . Kills . | . . . . Allies Corrupted . | . . . . Allies Melted . | . . . . Intel | -11 -10 -10 -7 ------- Run | Yrd Mat Sub Rec Active Infowar (turns) . | . . . . Robot Analysis Total . | . . . . Derelict Logs Recovered . | . . . . Drone Launches . | . . . . Drone Recoveries . | . . . . Exploration | -11 -10 -10 -7 ------------- Run | Yrd Mat Sub Rec Turns Passed 3036 | 13 1515 1500 8 Spaces Moved 1124 | 5 595 522 2 Core . | . . . . Treads 1124 | 5 595 522 2 Legs . | . . . . Wheels . | . . . . Hover . | . . . . Flight . | . . . . Fastest Speed 160 | 160 160 240 250 Average Speed 239 | 160 236 244 250 Slowest Speed 250 | 160 240 250 250 Overloaded Moves . | . . . . Propulsion Burnouts . | . . . . Robots Hopped . | . . . . Potential Cave-ins . | . . . . Cave-ins Triggered . | . . . . Exploration Rate (%) 25 | 2 81 18 2 Regions Visited 3 Branch Regions 2 Pre-discovered Areas . | . . . . Known Exits Taken . | . . . . Unknown Exits Taken 3 | 1 1 1 . Scrap Searched 6 | . . 6 . Spaces Dug . | . . . . Terrain Destroyed 20 | . . 20 . Melee . | . . . . Projectile . | . . . . AOE 20 | . . 20 . Terrain Rammed . | . . . . Walls Destroyed . | . . . . Machines Disabled . | . . . . Actions | -11 -10 -10 -7 --------- Run | Yrd Mat Sub Rec Total 1302 | 11 647 640 4 Wait 16 | . . 16 . Move 1121 | 4 594 521 2 Hop . | . . . . Pick Up 27 | . 13 14 . Fast Attach . | . . . . Attach 8 | . 1 6 1 Detach . | . . . . Swap 12 | 3 1 8 . Drop 7 | 4 1 2 . Fire 108 | . 34 73 1 Melee . | . . . . Ram . | . . . . Kick . | . . . . Crush 3 | . 3 . . Escape Stasis . | . . . . Rewire . | . . . . Trap . | . . . . Miscellaneous . | . . . . Route ------- -11/Scrapyard -10/Materials (discovered 5 exits: [*Mat x3] / [*Min] / *Sub) -10/Subcaves (discovered 2 exits: [*Mat] / [*Rec]) -7/Recycling History --------- Turn | Location | Event 8 | -11/Scrapyard | Discovered new exit (range 3) 14 | -11/Scrapyard | Entered Materials 227 | -10/Materials | Discovered new exit (range 9) 301 | -10/Materials | Build established: Mutant 705 | -10/Materials | Discovered new exit (range 11) 765 | -10/Materials | Discovered new exit (range 9) 1019 | -10/Materials | Discovered new exit (range 13) 1138 | -10/Materials | Discovered new exit (range 15) 1529 | -10/Materials | Entered Subcaves 1541 | -10/Subcaves | Discovered new exit (range 11) 1590 | -10/Subcaves | Ambushed by Subdweller buried in earth 1632 | -10/Subcaves | Discovered new exit (range 9) 1651 | -10/Subcaves | Core integrity fell below 50% 2234 | -10/Subcaves | Shifting Twisted Machinery released Barrage Gun 2796 | -10/Subcaves | Core integrity fell below 20% 3029 | -10/Subcaves | Entered Recycling 3037 | -7/Recycling | Destroyed by Y-54 Guardian with Flak Gun Last Messages --------------- 02691_ Searching scrap... 02691_ Found Piercing Trap. 02691_ Found Sub. Shrapnel Launcher. 02691_ Found 68 Matter. 02692_ Acquired 67 matter. 02697_ Acquired Sub. Shrapnel Launcher. 02751_ Acquired 1 matter. 02793_ Lgt. Ion Engine destroyed. 02806_ 1L-58I(R) destroyed. 02809_ Acquired 57 matter. 02814_ Acquired Sub. Power Source. 02815_ Subatomizers dissect the Disposable Heat Sink. 02821_ Acquired Sub. Monowheel. 02826_ Subatomizers dissect the Disposable Heat Sink. LOCATION=UNKNOWN GOAL=ESCAPE 03034_ Y-54 Guardian springs to life. 03034_ Lgt. Assault Rifle destroyed. Map ----- +----------------------------------------------------+ | ?????????????????????????????????????????????? | | ?????????????????????????????????????????????? | | ?????????????????????????????????????????????? | | ?????????????????????????????????????????????? | | ?????????????????????????????????????????????? | | ?????????????????????????????????????????????? | | ?????????????????????????????????????????????? | | ?????????????????????????????????????????????? | | ?????????????????????????????????????????????? | | ?????????????????????????????????????????????? | | ?????????????????????????????????????????????? | | ?????????????????????????????????????????????? | | ?????????????????????????????????????????????? | | ?????????????????????????????????????????????? | | ?????????????????????????????????????????????? | | ?????????????????????????????????????????????? | | ?????????????????????????????????????????????? | | ?????????????????????????????????????????????? | | ?????????????????????????????????????????????? | | ?????????????????????????????????????????????? | | ?????????????????????????????????????????????? | | ??????????????????????#####??????????????????? | | ??????????????????????# #??????????????????? | | ??????????????????????# ##?????????????????? | | ??????????????????????# Y#?????????????????? | | ??????????????????????# @##?????????????????? | | ??????????????????????# #??????????????????? | | ??????????????????????# #??????????????????? | | ??????????????????????# #??????????????????? | | ?????????????????????? #??????????????????? | | ????????????????????? #??????????????????? | | ???????????????????? """ #??????????????????? | | ??????????????????? """ #??????????????????? | | ??????????????????" """ #??????????????????? | | ?????????????????? ?? #??????????????????? | | ????????????????? ??? ??????????????????? | | ????????????????""?????" #??????????????????? | | ???????????????????????" ???????????????????? | | ???????????????????????" ???????????????????? | | ???????????????????????? ???????????????????? | | ???????????????????????? ???????????????????? | | ?????????????????????????????????????????????? | | ?????????????????????????????????????????????? | | ?????????????????????????????????????????????? | | ?????????????????????????????????????????????? | | ?????????????????????????????????????????????? | | ?????????????????????????????????????????????? | | ?????????????????????????????????????????????? | | ?????????????????????????????????????????????? | | ?????????????????????????????????????????????? | +----------------------------------------------------+ Best States ------------- Heat Dissipation 25 Energy Generation 14 Energy Capacity 160 Matter Stores 300 Matter Capacity 300 Sight Range 16 Terrain Scan Density 10 Armor Coverage 80 Evasion (%) 40 Recoil Reduction 2 Item Schematics ----------------- None Robot Schematics ------------------ None Fabricated ------------ Nothing Repaired ---------- Nothing Studied --------- None Alien Tech Used ----------------- None Achievements -------------- None Challenges ------------ None Game ------ Seed StructuralResetBooster Manual? 0 Play Time 00:10:35 Cumulative 71.0 hours Start 2026.08.04 @ 16:15:05 End 2026.08.04 @ 16:25:40 Sessions 1 Manual Loads 0 Difficulty Rogue Special Mode None Game No. 301 Rogue 256 Adventurer 45 Explorer 0 Win Type - Total 3 Types 3/0/0/0/0/0/0/0/0/0 Lore% 68 Gallery% 48 Achievement% 48 Wizard Run 0 Options --------- Layout 1 ASCII 0 Keyboard 0 Movement Numpad Keybinds 0 Fullscreen 1 Font 24/Smallcaps Map View 50x35 Zoom Use 0% Tactical HUD 1 Map Filters NONE Filters NONE Steam 1 RUN: 3ee866c7-312c-4179-aabd-ade9834efb32